Cogmind - Beta 16.1 @@@ ROGUE MODE // 2026.02.22 @ 21:15:29 Player: VLAM Result: Destroyed by X-57 Shotgunner with Shotgun Performance ------------- Evolutions (2) 1000 Regions Visited (4) 800 Robots Destroyed (45) 225 Value Destroyed (1341) 1341 Prototype IDs (0) 0 Alien Tech Used (0) 0 Bonus (277) 277 TOTAL SCORE: 3643 Bonus ------- Pacifist 200 High Alert Combat Kills 77 Cogmind --------- Core Integrity 0/550 Matter 80/300 Energy 100/100 System Corruption 3% Temperature Cool (0) Movement Core (150) Ox2 Location -8/Materials Parts ------- > --- POWER (2) -------- (None) > --- PROPULSION (3) --- (None) > --- UTILITY (4) ------ Small Storage Unit Improved Weapon Shielding Improved Weapon Shielding > --- WEAPON (2) ------- (None) > --- INVENTORY (8) ---- Ion Engine Improved Ion Engine Improved Datajack Peak State ------------ > --- POWER ------------ Ion Engine Light Ion Engine > --- PROPULSION ------- Wheel Wheel Armored Wheel > --- UTILITY ---------- Small Storage Unit Targeting Computer Reflective Plating > --- WEAPON ----------- Assault Cannon Assault Cannon > --- INVENTORY -------- Improved Ion Engine Wheel EM Pulse Gun Assault Cannon Grenade Launcher Rocket Launcher Rocket Launcher [Rating: 18] Favorites ----------- Power Ion Engine Engine Ion Engine Propulsion Wheel Wheel Wheel Utility Small Storage Unit Storage Small Storage Unit Processor Targeting Computer Protection Utility Shielding Weapon EM Pulse Gun Energy Gun EM Pulse Gun Ballistic Cannon Assault Cannon Launcher Rocket Launcher Special Melee Weapon Improved Datajack Build | -11 -10 -10 -9 -8 ------- Run | Yrd Mat Min Mat Mat Slots Evolved 4 | . . . 2 2 Power 1 | . . . 1 . Propulsion 1 | . . . . 1 Utility 2 | . . . 1 1 Weapon . | . . . . . Parts Attached 38 | 6 2 . 12 18 Power 8 | 1 . . 3 4 Engine 8 | 1 . . 3 4 Core . | . . . . . Reactor . | . . . . . Propulsion 6 | 2 . . 1 3 Treads . | . . . . . Leg . | . . . . . Wheel 6 | 2 . . 1 3 Hover . | . . . . . Flight . | . . . . . Utility 10 | 1 . . 5 4 Device . | . . . . . Storage 1 | 1 . . . . Processor 2 | . . . 2 . Hackware . | . . . . . Protection 7 | . . . 3 4 Artifact . | . . . . . Weapon 14 | 2 2 . 3 7 Energy Gun 7 | 2 2 . 3 . Energy Cannon . | . . . . . Ballistic Gun . | . . . . . Ballistic Cannon 3 | . . . . 3 Launcher 3 | . . . . 3 Special Weapon . | . . . . . Impact Weapon . | . . . . . Slashing Weapon . | . . . . . Piercing Weapon . | . . . . . Special Melee Weapon 1 | . . . . 1 Unidentified Prototypes . | . . . . . Parts Lost 22 | . . . 3 19 Power 6 | . . . 1 5 Propulsion 6 | . . . 1 5 Utility 3 | . . . 1 2 Weapon 7 | . . . . 7 Highest Loss Streak 9 | . . . 2 9 To Critical Strikes . | . . . . . Average Backups 6 | 1 7 8 7 5 Power 1 | . 1 1 . 1 Propulsion 1 | 1 4 4 2 . Utility . | . . . 1 . Weapon 3 | . 2 3 3 3 Tool/Special . | . . . . . Unused Backups 14 | . . . 13 1 Power 1 | . . . . 1 Propulsion 4 | . . . 4 . Utility 4 | . . . 4 . Weapon 5 | . . . 5 . Tool/Special . | . . . . . Average Slot Usage (%) 77 | . 84 85 88 63 Engine 15 | . 14 14 17 13 Wheel 17 | . 28 28 16 12 Storage 10 | . 14 14 11 9 Processor 7 | . . . 9 8 Protection 7 | . . . 11 5 Energy Gun 16 | . 27 28 21 4 Ballistic Cannon 2 | . . . . 5 Launcher 1 | . . . . 4 Peak Build Rating 18 | 6 6 6 13 18 Average Rating 9 | 4 5 6 9 10 On Entrance 6 | . 6 6 6 13 Avg Prop Armor Cover (%) . | . . . . . Naked Turns . | . . . . . Heaviest Build 29 | 13 14 14 21 29 Greatest Support 32 | 20 20 20 22 32 Greatest Overweight (x) 9 | . . . 1 9 Average Overweight (x) . | . . . . 1 Largest Inventory Capacity 8 | 8 8 8 8 8 Average Capacity 7 | 7 8 8 8 8 Most Carried 8 | 6 8 8 8 8 Average Carried 6 | 2 7 8 7 5 Final Capacity 8 | 8 8 8 8 8 Final Carried 8 | 6 8 8 8 3 Class Distribution -------------------- 100% | Mutant Dominant Class ---------------- Mutant | -10/Materials Mutant | -10/Mines Mutant | -9/Materials Mutant | -8/Materials Resources | -11 -10 -10 -9 -8 ----------- Run | Yrd Mat Min Mat Mat Matter Collected 799 | 183 . . 212 404 Remotely . | . . . . . Salvage Created 1263 | . . . 408 855 Parts 83 | . . . 25 58 Haulers Intercepted 2 | . . . . 2 Recyclers Shooed 5 | . . . 1 4 Parts Field Recycled . | . . . . . Retrieved Matter . | . . . . . Parts Self-Destructed . | . . . . . Prevented . | . . . . . Parts Restored . | . . . . . Kills | -11 -10 -10 -9 -8 ------- Run | Yrd Mat Min Mat Mat Combat Hostiles Destroyed 25 | . . . 7 18 Guns 8 | . . . 6 2 Cannons 6 | . . . . 6 AOE 10 | . . . . 10 Classes Destroyed 12 | . . . 5 7 Worker 3 | . . . 1 2 Builder 5 | . . . . 5 Tunneler 1 | . . . . 1 Hauler 2 | . . . . 2 Recycler 2 | . . . . 2 Mechanic 1 | . . . . 1 Operator 1 | . . . . 1 Watcher 5 | . . . 3 2 Grunt 18 | . . . 4 14 Brawler 2 | . . . . 2 Duelist 1 | . . . 1 . Sentry 4 | . . . 2 2 Best Kill Streak 13 | . . . 4 13 Combat Bots Only 5 | . . . 3 5 Max Kills in Single Turn 5 | . . . 2 5 Gunslinging 1 | . . . 1 . Exploded 3 | . . . . 3 Melee . | . . . . . Uniques/NPCs Destroyed . | . . . . . Combat | -11 -10 -10 -9 -8 -------- Run | Yrd Mat Min Mat Mat Hostile Shots Fired 231 | . 5 . 31 195 Missed 85 | . 3 . 9 73 Hits 146 | . 2 . 22 122 Melee 11 | . . . 8 3 Projectile 135 | . 2 . 14 119 Critical Strikes 10 | . . . 2 8 Damage Taken 2483 | . 26 . 429 2028 Core 652 | . . . 93 559 Absorbed by Shields . | . . . . . Redirected to Shielding 3 | . . . 3 . Ignored by Resistances 85 | . . . 5 80 Regen/Repaired (Parts) 30 | . . . 30 . Core Remaining (%) 92 | 100 . 100 76 . Volleys Fired 78 | . . . 24 54 Largest 2 | . . . 2 2 Hottest 100 | . . . 100 80 Shots Fired 148 | . . . 47 101 Gun 70 | . . . 47 23 Cannon 56 | . . . . 56 Launcher 22 | . . . . 22 Special . | . . . . . Kinetic 56 | . . . . 56 Thermal 29 | . . . 29 . Explosive 22 | . . . . 22 Electromagnetic 41 | . . . 18 23 Robot Hit Streak 18 | . . . 12 18 Robot Miss Streak 6 | . . . 2 6 Penetration Max . | . . . . . Secondary Targets 1 | . . . 1 . Max Gunslinging Chain 1 | . . . 1 . Shots Hit Robots 95 | . . . 35 60 Core Hits 78 | . . . 17 61 Critical Kills . | . . . . . Critical Parts Destroyed . | . . . . . Critical Strikes 2 | . . . 1 1 Burn 1 | . . . 1 . Blast 1 | . . . . 1 Melee Attacks 2 | . . . . 2 Impact . | . . . . . Slashing . | . . . . . Piercing . | . . . . . Sneak Attacks . | . . . . . Combat Hostiles . | . . . . . Follow-up Attacks . | . . . . . Damage Inflicted 3812 | . . . 543 3269 Guns 728 | . . . 503 225 Cannons 773 | . . . . 773 Explosions 2310 | . . . 40 2270 Melee . | . . . . . Ramming 1 | . . . . 1 Kinetic 773 | . . . . 773 Thermal 781 | . . . 313 468 Explosive 1802 | . . . . 1802 Electromagnetic 455 | . . . 230 225 Impact . | . . . . . Slashing . | . . . . . Piercing . | . . . . . Highest Corruption 3 | . . . . 3 Average Corruption 2 | . . . . 2 Corruption Purged . | . . . . . Corruption Blocked . | . . . . . Effects 5 | . . . . 5 Message Errors 2 | . . . . 2 Parts Rejected 1 | . . . . 1 Data Loss (minor) 2 | . . . . 2 Overload Shots . | . . . . . Overflow Damage 232 | . . . . 232 Projectiles . | . . . . . Explosions 232 | . . . . 232 Melee . | . . . . . Knockbacks 7 | . . . . 7 Impact . | . . . . . Kinetic 3 | . . . . 3 Secondary 4 | . . . . 4 Self-Inflicted Damage 256 | . . . . 256 Shots 5 | . . . . 5 Rammed 1 | . . . . 1 Targets Rammed 1 | . . . . 1 Kicked . | . . . . . Crushed . | . . . . . Highest Temperature 366 | . . . 308 366 Average Temperature 135 | . . . 96 158 Received Heat Transfer 849 | . 15 . 78 756 Effects 3 | . . . . 3 Shutdowns 1 | . . . . 1 Short Circuit 1 | . . . . 1 Damage (minor) 1 | . . . . 1 Siege Activations . | . . . . . Martial Activations . | . . . . . Shielding Activations . | . . . . . Robots Disrupted . | . . . . . Combat Hostiles . | . . . . . Robots Corrupted . | . . . . . Combat Hostiles . | . . . . . Parts Fried 1 | . . . . 1 Impact Corruptions . | . . . . . Robots Melted 1 | . . . 1 . Combat Hostiles 1 | . . . 1 . Parts Melted 4 | . . . 4 . Heat Transferred 1238 | . . . 938 300 Parts Sabotaged . | . . . . . Parts Stolen . | . . . . . Parts Stripped . | . . . . . Power Chain Reactions 1 | . . . 1 . Alert | -11 -10 -10 -9 -8 ------- Run | Yrd Mat Min Mat Mat Maximum Alert Level 2 | . . . . 2 Low Security (%) 78 | 100 100 100 100 40 Level 1 6 | . . . . 17 Level 2 15 | . . . . 42 Level 3 . | . . . . . Level 4 . | . . . . . Level 5 . | . . . . . High Security . | . . . . . Max Security . | . . . . . Peak Influence 526 | . 30 11 67 526 Initial 20 | . . 11 . 20 Average 112 | . 1 3 20 282 Influence Increases 1140 | . 35 . 260 845 Destroy 0b10 Robot/C 500 | . . . 140 360 Destroy 0b10 Robot/NC 100 | . . . 20 80 Destroy Leader 124 | . . . 46 78 Successful Hack 24 | . 5 . 19 . Disable Machine 105 | . . . . 105 Destroy Structure 137 | . . . 5 132 Partial Spotted 15 | . . . . 15 Lose Combat Pursuer 135 | . 30 . 30 75 Influence Decreases 695 | . 5 30 212 448 Entered New Map 47 | . . 19 . 28 Time Decay 447 | . 5 11 201 230 Lost Part 200 | . . . 10 190 Purge Threat 1 | . . . 1 . Squads Dispatched 8 | . 1 . 3 4 Investigation 3 | . 1 . 2 . Extermination . | . . . . . Reinforcement 5 | . . . 1 4 Assault . | . . . . . Garrison . | . . . . . Intercept . | . . . . . Searches Triggered . | . . . . . Construction Impeded 1 | . . . . 1 Haulers Reinforced . | . . . . . Active Scanning Responses . | . . . . . Cargo Convoy Interrupts . | . . . . . Stealth | -11 -10 -10 -9 -8 --------- Run | Yrd Mat Min Mat Mat Distress Signals 7 | . 1 . 3 3 Communications Jammed . | . . . . . Distress Signals . | . . . . . Times Spotted 49 | . 7 . 13 29 Peak Tracking Total 6 | . 4 . 3 6 Tactical Retreats 8 | . 1 . 2 5 Traps | -11 -10 -10 -9 -8 ------- Run | Yrd Mat Min Mat Mat Traps Triggered . | . . . . . Indirectly . | . . . . . Trap Hack Attempts . | . . . . . Triggered . | . . . . . Disarmed . | . . . . . Reprogrammed . | . . . . . Reused . | . . . . . Traps Extracted . | . . . . . Installed . | . . . . . Triggered . | . . . . . Machines | -11 -10 -10 -9 -8 ---------- Run | Yrd Mat Min Mat Mat Machines Disabled 7 | . . . . 7 Max in Single Turn 3 | . . . . 3 Machines Repaired . | . . . . . Machines Dismantled . | . . . . . Machines Sabotaged . | . . . . . Overloaded Fab Kills . | . . . . . Hacking | -11 -10 -10 -9 -8 --------- Run | Yrd Mat Min Mat Mat Machines Accessed 7 | . 1 . 5 1 Terminals 6 | . 1 . 4 1 Fabricators . | . . . . . Repair Stations 1 | . . . 1 . Recycling Units . | . . . . . Scanalyzers . | . . . . . Garrison Access . | . . . . . Total Hacks 16 | . 3 . 11 2 Successful 7 | . 1 . 6 . Failed 9 | . 2 . 5 2 Catastrophic 3 | . . . 3 . Database Lockouts . | . . . . . Manual . | . . . . . Terminals 13 | . 3 . 8 2 Fabricators . | . . . . . Repair Stations 3 | . . . 3 . Recycling Units . | . . . . . Scanalyzers . | . . . . . Garrison Access . | . . . . . Terminal Hacks 5 | . 1 . 4 . Branch Access Points 1 | . . . 1 . Unreport Threat 1 | . . . 1 . Zone Layout 3 | . 1 . 2 . Fabricator Hacks . | . . . . . Repair Station Hacks 2 | . . . 2 . Scan Component 1 | . . . 1 . Repair 1 | . . . 1 . Recycling Unit Hacks . | . . . . . Scanalyzer . | . . . . . Garrison Access Hacks . | . . . . . Unauthorized Hacks . | . . . . . Terminals . | . . . . . Fabricators . | . . . . . Repair Stations . | . . . . . Recycling Units . | . . . . . Scanalyzers . | . . . . . Garrison Access . | . . . . . Data Cores Recovered . | . . . . . Used . | . . . . . Hacking Detections 5 | . 1 . 3 1 Full Trace Events 3 | . 1 . 2 . Feedback Events . | . . . . . Feedback Blocked . | . . . . . Robot Schematics Acquired . | . . . . . Robots Built . | . . . . . Authchips . | . . . . . Time . | . . . . . Total Robot Build Rating . | . . . . . Part Schematics Acquired . | . . . . . Parts Built . | . . . . . Authchips . | . . . . . Time . | . . . . . Total Part Build Rating . | . . . . . Part Studies Acquired . | . . . . . Parts Repaired 1 | . . . 1 . Time 26 | . . . 26 . Parts Recycled . | . . . . . Recycled Matter . | . . . . . Retrieved Matter . | . . . . . Retrieved Components . | . . . . . Parts Scanalyzed . | . . . . . Part Schematics Acquired . | . . . . . Parts Damaged . | . . . . . Bothacking | -11 -10 -10 -9 -8 ------------ Run | Yrd Mat Min Mat Mat Used RIF Installer . | . . . . . Robots Hacked 2 | . . . . 2 Non-combat . | . . . . . Combat 2 | . . . . 2 Robot Hacks Applied 2 | . . . . 2 parse_system 2 | . . . . 2 Relay Couplers Released . | . . . . . Fabnet Peak Effective % . | . . . . . Robots Rewired . | . . . . . Allies Hacked . | . . . . . Hacks Repelled . | . . . . . Allies | -11 -10 -10 -9 -8 -------- Run | Yrd Mat Min Mat Mat Total Allies . | . . . . . Largest Group . | . . . . . Highest-Rated Group . | . . . . . Highest-Rated Ally . | . . . . . Total Orders . | . . . . . Ally Attacks . | . . . . . Total Damage . | . . . . . Kills . | . . . . . Allies Corrupted . | . . . . . Allies Melted . | . . . . . Intel | -11 -10 -10 -9 -8 ------- Run | Yrd Mat Min Mat Mat Active Infowar (turns) . | . . . . . Robot Analysis Total . | . . . . . Derelict Logs Recovered . | . . . . . Drone Launches . | . . . . . Drone Recoveries . | . . . . . Exploration | -11 -10 -10 -9 -8 ------------- Run | Yrd Mat Min Mat Mat Turns Passed 1349 | 48 149 64 594 494 Spaces Moved 900 | 42 111 80 453 214 Core 84 | 1 . . . 83 Treads . | . . . . . Legs . | . . . . . Wheels 816 | 41 111 80 453 131 Hover . | . . . . . Flight . | . . . . . Fastest Speed 50 | 50 80 80 80 83 Average Speed 96 | 79 80 80 87 134 Slowest Speed 500 | 80 80 80 95 500 Overloaded Moves . | . . . . . Propulsion Burnouts . | . . . . . Robots Hopped . | . . . . . Potential Cave-ins . | . . . . . Cave-ins Triggered . | . . . . . Exploration Rate (%) 22 | 3 19 20 43 27 Regions Visited 4 Branch Regions 1 Pre-discovered Areas . | . . . . . Known Exits Taken . | . . . . . Unknown Exits Taken 4 | 1 1 1 1 . Scrap Searched . | . . . . . Spaces Dug 8 | . . . . 8 Terrain Destroyed 178 | . . . 4 174 Melee . | . . . . . Projectile 5 | . . . . 5 AOE 173 | . . . 4 169 Terrain Rammed . | . . . . . Walls Destroyed . | . . . . . Machines Disabled . | . . . . . Actions | -11 -10 -10 -9 -8 --------- Run | Yrd Mat Min Mat Mat Total 1226 | 53 171 79 607 316 Wait 156 | . 53 . 84 19 Move 896 | 41 110 79 452 214 Hop . | . . . . . Pick Up 30 | 6 4 . 16 4 Fast Attach 21 | 6 . . 9 6 Attach 16 | . 2 . 3 11 Detach 3 | . . . 1 2 Swap 4 | . . . 1 3 Drop 19 | . 2 . 17 . Fire 78 | . . . 24 54 Melee 2 | . . . . 2 Ram 1 | . . . . 1 Kick . | . . . . . Crush . | . . . . . Escape Stasis . | . . . . . Rewire . | . . . . . Trap . | . . . . . Miscellaneous . | . . . . . Route ------- -11/Scrapyard -10/Materials -10/Mines -9/Materials (discovered 4 exits: *Mat / Min x2 / Sto) -8/Materials History --------- Turn | Location | Event 20 | -11/Scrapyard | Discovered new exit (range 16) 49 | -11/Scrapyard | Entered Materials 79 | -10/Materials | Discovered new exit (range 16) 198 | -10/Materials | Entered Mines 257 | -10/Mines | Discovered new exit (range 6) 262 | -10/Mines | Entered Materials 262 | -9/Materials | Evolved 2 slots: Power x1, Utility x1 302 | -9/Materials | Build established: Mutant 414 | -9/Materials | Repaired Wheel 645 | -9/Materials | Identified exit to Mines 645 | -9/Materials | Identified exit to Storage 844 | -9/Materials | Discovered new exit (range 17) 856 | -9/Materials | Entered another Materials area 856 | -8/Materials | Evolved 2 slots: Propulsion x1, Utility x1 1019 | -8/Materials | Lost 3 parts (1p1n1w) 1102 | -8/Materials | Lost 4 parts (2n1u1w) 1243 | -8/Materials | Core integrity fell below 50% 1296 | -8/Materials | Core integrity fell below 20% 1301 | -8/Materials | Lost 9 parts (4p1n1u3w) 1350 | -8/Materials | Destroyed by X-57 Shotgunner with Shotgun Last Messages --------------- 01264_ Assault Cannon destroyed. 01267_ K-01 Serf cleans the Matter Filter. 01267_ Lgt. Ion Engine destroyed. 01270_ EM Pulse Gun destroyed. 01273_ K-01 Serf cleans the Matter Filter. 01275_ System corrupted: Component data lost. 01279_ K-01 Serf cleans the Matter Filter. 01279_ Acquired Imp. Datajack. 01290_ Jacked X-57 Shotgunner... >>parse_system Reading system data... 01291_ Jacked X-57 Shotgunner... >>parse_system Reading system data... 01292_ Slammed into X-57 Shotgunner. 01309_ K-01 Serf cleans the Terminal. 01319_ Discarded Broken Targeting Computer. 01332_ Acquired Imp. Weapon Shielding. 01347_ X-57 Shotgunner misfires. 01350_ System corrupted: Imp. Weapon Shielding rejected. Map ----- +----------------------------------------------------+ | ????????????????????????????????????????? | | ????????????????????????????????????????? | | ????????????????????????????????????????? | | ????????????????????????????????????????? | | ????????????????????????????????????????? | | ????????????????????????????????????????? | | ????????????????????????????????????????? | | ????????????????????????????????????????? | | ????????????????????????????????????????? | | ????????????????????????????????????????? | | ????????????????????????????????????????? | | ????????????????????????????????????????? | | ????????????????????????????????????????? | | ????????????????? ??????????????????????? | | ?????????????????# ?????????????????????? | | ?????????????????# ????????????????????? | | ?????????????????# ????????????????????? | | ?????????????????+ ???????????????????? | | #+##?????????????# ######?????????????? | | ##????????????# ?????????????? | | ????????????# #?????????????? | | #?????????????# #?????????????? | | #?????????????# #?????????????? | | #?????????????# """ #?????????????? | | #?????????????# """ ###???????????? | | #?????????????# """ @ #???????????? | | #?????????????# #???????????? | | + "??????????# x #???????????? | | #?????????????# ######x####????????? | | ###?????????????# # #????????? | | #???????????????# # ! ! #????????? | | #???????????????+ / #????????? | | #???????????????# # #????????? | | #???????????????# #####+#####????????? | | #??????????????## ##?????????????????? | | #??????????????# #?????????????????? | | ################ #?????????????????? | | T #?????????????????? | | ############### #?????????????????? | | #?????????????# ????????????? | | #?????????????###+#### ??????????? | | #?????????????????????? ????????? | | #???????????????????????T? ?????????? | | #???????????????????????? ????????????? | | #????????????????????????? ???????????? | | #?????????????????????????????????????? | | #?????????????????????????????????????? | | ##?????????????????????????????????????? | | #??????????????????????????????????????? | | #??????????????????????????????????????? | +----------------------------------------------------+ Best States ------------- Heat Dissipation 31 Energy Generation 17 Energy Capacity 415 Matter Stores 300 Matter Capacity 300 Sight Range 16 Terrain Scan Density 10 Armor Coverage 150 Resistance: TH 10 Utility Shielding 33 Weapon Shielding 66 Evasion (%) 44 Targeting Accuracy 5 Item Schematics ----------------- None Robot Schematics ------------------ None Fabricated ------------ Nothing Repaired ---------- Wheel | 25% | -9/Materials Studied --------- None Alien Tech Used ----------------- None Achievements -------------- Bumper Bots Heavy Suspicion Resistances Are Futile Challenges ------------ None Game ------ Seed RocketInterdictionDeck Manual? 0 Play Time 00:28:59 Cumulative 15.5 hours Start 2026.02.22 @ 20:46:08 End 2026.02.22 @ 21:15:29 Sessions 1 Manual Loads 0 Difficulty Rogue Special Mode None Game No. 27 Rogue 27 Adventurer 0 Explorer 0 Win Type - Total 0 Types 0/0/0/0/0/0/0/0/0/0 Lore% 2 Gallery% 17 Achievement% 11 Wizard Run 0 Options --------- Layout 0 ASCII 0 Keyboard 1 Movement Numpad Keybinds 0 Fullscreen 2 Font 24/Smallcaps Map View 76x50 Zoom Use 0% Tactical HUD 1 Map Filters NONE Filters NONE Steam 1 RUN: 1568e0a3-8124-4dbe-bd0e-6cb974083350